Workbook

Sheet Začiatok
A2: Začíname pracovať so vzorcami
A3: Len niekoľko krokov vás delí od toho, aby ste sa naučili vytvárať vzorce a funkcie v Exceli, najvýkonnejšej tabuľkovej aplikácii na svete.
A4: Späť na začiatok prejdete stlačením kombinácie klávesov CTRL + HOME. Ak ste pripravení začať s prehliadkou, stlačte kombináciu klávesov CTRL + PAGE DOWN.

Sheet Základy
A1: Základy: matematické výpočty v Exceli
A2: V Exceli môžete sčitovať, odčitovať, násobiť a deliť bez použitia vstavaných funkcií. Stačí použiť základné operátory: +, -, *, /. Všetky vzorce začínajú znakom rovnosti (=). | C2: Použité čísla: | E2: Operácia: | F2: Vzorce: | G2: Odpovede:
A3: Ak chcete sčitovať, vyberte bunku F3, zadajte vzorec =C3+C4 a potom stlačte kláves Enter. | C3: 1 | E3: Sčítanie (+) | G3: =C3+C4 -> 3
A4: Ak chcete odčitovať, vyberte bunku F4, zadajte vzorec =C3-C4 a potom stlačte kláves Enter. | C4: 2 | E4: Odčítanie (-) | G4: =C3-C4 -> -1
A5: Ak chcete násobiť, vyberte bunku F5, zadajte vzorec =C3*C4 a potom stlačte kláves Enter. | E5: Násobenie (*) | G5: =C3*C4 -> 2
A6: Ak chcete deliť, vyberte bunku F6, zadajte vzorec =C3/C4 a potom stlačte kláves Enter. | E6: Delenie (/) | G6: =C3/C4 -> 0.5
A7: Vyskúšajte to: zmeňte čísla v bunkách C3 a C4 a sledujte, ako sa automaticky zmenia výsledky vzorcov. | E7: Umocnenie (^) | G7: =C3^C4 -> 1
A8: BODY NAVYŠE: Hodnotu môžete umocniť pomocou znaku vsuvky (^), napríklad =A1^A2. Zadáte ho stlačením kombinácie klávesov Alt + 94. Do bunky F7 zadajte vzorec =C3^C4.
A9: Ďalšie podrobnosti nájdete nižšie
A10: Ďalší krok
A11: Ďalšie informácie o vzorcoch, bunkách a rozsahoch
A12: Excel tvoria jednotlivé bunky, ktoré sú usporiadané do riadkov a stĺpcov. Riadky sú označené číslami a stĺpce písmenami. K dispozícii je vyše 1 milión riadkov a 16 000 stĺpcov, do ktorých môžete vložiť vzorce.
A13: Vzorce môžu obsahovať odkazy na bunky, rozsahy odkazov na bunky, operátory a konštanty. Toto všetko sú príklady vzorcov: =A1+B1 =10+20 =SUM(A1:A10)
A14: Všimnite si, že v treťom z vyššie uvedených príkladov sme použili funkciu SUM. Funkcia je vopred zostavený príkaz, ktorý vyberie určité hodnoty, uskutoční s nimi určitý výpočet a vráti výsledok. Funkcia SUM napríklad sa vyberie zadané odkazy na bunky alebo rozsahy a sčíta ich. V tomto príklade vyberie bunky A1 až A10 a sčíta ich. Excel obsahuje vyše 400 funkcií, ktoré si môžete prezrieť na karte Vzorce.
A15: Vzorce s funkciami začínajú znakom rovnosti, za ktorým nasleduje názov funkcie a jej argumenty (hodnoty, ktoré funkcia použije na výpočet) uzavreté v zátvorkách.
A16: Vzorec potvrdíte stlačením klávesu Enter. Keď to urobíte, vzorec sa vypočíta a v bunke sa zobrazí výsledok. Samotný vzorec sa zobrazuje v riadku vzorcov pod pásom s nástrojmi. Vzorec tiež môžete zobraziť v bunke tak, že prejdete do režimu úprav stlačením klávesu F2. Opätovným stlačením klávesu Enter dokončíte vzorec a vypočítate výsledok.
A17: Niekoľko vysvetlení k vzorcom
A18: =10+20 je vzorec, pričom čísla 10 a 20 sú konštanty a znak + je operátor.
A19: =SUM(A1:A10) je vzorec, pričom SUM je názov funkcie, medzi ľavou a pravou zátvorkou sú uvedené argumenty vzorca a A1:A10 je rozsah buniek pre funkciu.
A20: =SUM(A1:A10;C1:C10) je vzorec, pričom SUM je názov funkcie, medzi ľavou a pravou zátvorkou sú uvedené argumenty vzorca a A1:A10;C1:C10 sú rozsahy buniek pre funkciu oddelené bodkočiarkou.
A21: DOBRE VEDIEŤ: Konštanty sú hodnoty, ktoré zadávate do buniek alebo vzorcov. Vzorec =10+20 síce môže vypočítať rovnaký výsledok ako vzorec =A1+B1, používať vo vzorcoch konštanty však nie je vhodné. Prečo? Konštantu totiž uvidíte jedine tak, že vyberiete bunku a vyhľadáte ju. Z tohto dôvodu môže byť ťažké ju neskôr zmeniť. Omnoho jednoduchšie je vložiť konštanty do buniek, v ktorých ich možno jednoducho upraviť, a do vzorcov vložiť odkazy na bunky. Príklad: Vyberte nižšie uvedenú žltú bunku s číslom 12. Všimnite si, že sme použili funkciu SUM s rozsahom buniek. Priamo do vzorca sme nezadali číslo 4 ani 8.
A22: Predchádzajúci
A23: Nasledujúci
A24: Ďalšie informácie na webe
A25: Používanie Excelu ako kalkulačky
A26: Prehľad vzorcov v Exceli
A27: Zoznam funkcií Excelu (podľa kategórie)
A28: Zoznam funkcií Excelu (podľa abecedy)
A29: Bezplatné online školenie pre Excel
J40: Hodnoty
J41: 4
J42: 8
J43: =SUM(J41:J42) -> 12

Sheet Úvodné informácie o funkciách
A1: Úvodné informácie o funkciách
A2: Funkcie vám umožňujú vykonávať rôzne veci, napríklad uskutočňovať matematické operácie, vyhľadávať hodnoty alebo dokonca vypočítavať dátumy a časy. Vyskúšajme si niekoľko spôsobov sčítania hodnôt pomocou funkcie SUM. | C2: Ovocie | D2: Množstvo | F2: Mäso | G2: Množstvo
A3: Do bunky D7 pod stĺpcom Množstvo v tabuľke pre ovocie zadajte vzorec =SUM(D3:D6), alebo napíšte vzorec =SUM(, potom vyberte daný rozsah pomocou myši a stlačte kláves Enter. Týmto sa sčítajú hodnoty v bunkách D3, D4, D5 a D6. Odpoveď by mal byť 170. | C3: Jablká | D3: 50 | F3: Hovädzie | G3: 50
A4: Teraz si vyskúšajme príkaz Automatický súčet. Vyberte bunku G7 pod stĺpcom pre mäso a potom vyberte položky Vzorce > Automatický súčet > Suma. Excel automaticky zadá vzorec. Potvrďte ho stlačením klávesu Enter. Príkaz Automatický súčet obsahuje všetky najbežnejšie funkcie. | C4: Pomaranče | D4: 20 | F4: Kuracie | G4: 30
A5: Tu je šikovná klávesová skratka: Vyberte bunku D15, stlačte kombináciu klávesov Alt + = a potom kláves Enter. Týmto sa automaticky zadá vzorec funkcie SUM. | C5: Banány | D5: 60 | F5: Bravčové | G5: 10
A6: Ďalšie podrobnosti nájdete nižšie | C6: Citróny | D6: 40 | F6: Ryby | G6: 50
A7: BODY NAVYŠE Skúste použiť funkciu COUNT, pričom uplatnite ktorúkoľvek z metód, ktoré ste už vyskúšali. Funkcia COUNT sčíta počet buniek v rozsahu, ktoré obsahujú čísla. | C7: SÚČET > | D7: =SUM(D3:D6) -> 170 | F7: SÚČET >
A8: Ďalší krok
A9: Ďalšie informácie o funkciách | C9: Položka | D9: Množstvo | F9: Položka | G9: Množstvo
A10: Prejdite na kartu Vzorce a prezrite si Knižnica funkcií, v ktorej sú funkcie uvedené podľa kategórií, ako sú napríklad kategórie Textové, Dátum a čas atď. Položka Vložiť funkciu vám umožňuje vyhľadávať funkcie podľa názvu a spustiť Sprievodcu funkciami, ktorý vám pomôže vytvoriť vzorec. Keď po stlačení klávesu = začnete zadávať názov funkcie, Excel spustí funkciu Intellisense, ktorá zobrazí zoznam všetkých funkcií začínajúcich sa na písmená, ktoré zadáte. Keď nájdete požadovanú funkciu, stlačte kláves Tab a Excel automaticky dokončí názov funkcie a zadá ľavú zátvorku. Zobrazia sa aj voliteľné a povinné argumenty. Poďme sa teraz pozrieť na anatómiu niekoľkých funkcií. Funkcia SUM má takúto štruktúru: | C10: Chlieb | D10: 50 | F10: Chlieb | G10: 50
A11: Keby funkcia SUM mohla rozprávať, povedala by asi toto: Vráťte súčet všetkých hodnôt v bunkách D35 až D38 a všetkých hodnôt v stĺpci H. SUM je názov funkcie, D35:D38 je prvý rozsahový argument, ktorý je takmer vždy povinný, a H:H je druhý rozsahový argument, oddelený bodkočiarkou. Teraz skúsme funkciu, ktorá nevyžaduje žiadne argumenty. | C11: Šišky | D11: 100 | F11: Šišky | G11: 100
A12: Funkcia TODAY vráti dnešný dátum. Automaticky sa aktualizuje, keď Excel vykoná prepočítanie. | C12: Sušienky | D12: 40 | F12: Sušienky | G12: 40
A13: VYSKÚŠAJTE TO Vyberte tieto bunky. Potom v dolnom riadku v pravom dolnom rohu okna Excelu vyhľadajte položku Súčet: 170. Tento riadok sa nazýva stavový riadok a ponúka ďalší spôsob na rýchle zistenie súčtu a iných podrobností o vybratej bunke alebo rozsahu. | C13: Torty | D13: 50 | F13: Torty | G13: 50
A14: DÔLEŽITÉ INFORMÁCIE Dvakrát kliknite na túto bunku. Všimnite si číslo 100 na konci. Do vzorcov sa dajú takto vkladať čísla, ale ak to nie je úplne nevyhnutné, tento postup neodporúčame. Tieto čísla sa nazývajú konštanty, ľahko však môžete zabudnúť, že tam sú. Odporúčame vyriešiť to radšej odkazom na inú bunku, napríklad F51. Tak si číslo jednoducho všimnete, pretože nebude skryté vo vzorci. | C14: Koláče | D14: 20 | F14: Koláče | G14: 20
A15: Ďalšie informácie na webe | C15: SÚČET > | F15: POČET >
A16: Všetky informácie o funkcii SUM
A17: Sčítanie čísel pomocou príkazu Automatický súčet
A18: Všetky informácie o funkcii COUNT
A19: Bezplatné online školenie pre Excel
A20: Späť na začiatok
A21: Ďalší krok
C34: Ovocie | D34: Množstvo
C35: Jablká | D35: 50
C36: Pomaranče | D36: 20
C37: Banány | D37: 60
C38: Citróny | D38: 40
C39: SÚČET > | D39: =SUM(D35:D38) -> 170
C44: Položka | D44: Množstvo
C45: Autá | D45: 20
C46: Kamióny | D46: 10
C47: Bicykle | D47: 10
C48: Korčule | D48: 40
D50: Súčet: | F50: Dodatočná hodnota | G50: Nový súčet
D51: =SUM(D45:D48,100) -> 180 | F51: 100 | G51: =SUM(D45:D48,F51) -> 180

Sheet AVERAGE
A1: Funkcia AVERAGE
A2: Pomocou funkcie AVERAGE získate priemer čísel v rozsahu buniek. | C2: Ovocie | D2: Množstvo | F2: Mäso | G2: Množstvo
A3: Vyberte bunku D7 a potom pomocou príkazu Automatický súčet pridajte funkciu AVERAGE. | C3: Jablká | D3: 50 | F3: Hovädzie | G3: 50
A4: Teraz vyberte bunku G7 a zadajte funkciu AVERAGE zadaním vzorca =AVERAGE(G3:G6). | C4: Pomaranče | D4: 20 | F4: Kuracie | G4: 30
A5: V bunke D15 môžete pomocou príkazu Automatický súčet alebo ručným zadaním zadať ďalšiu funkciu AVERAGE. | C5: Banány | D5: 60 | F5: Bravčové | G5: 10
A6: VYSKÚŠAJTE TO Po výbere ľubovoľného rozsahu čísel sa v stavovom riadku okamžite zobrazí Average. | C6: Citróny | D6: 40 | F6: Ryby | G6: 50
A7: Aktivovať predchádzajúci hárok | C7: AVERAGE > | F7: AVERAGE >
A8: Prejsť na nasledujúci hárok
A9: BODY NAVYŠE Skúste tu použiť funkciu MEDIAN alebo MODE. Funkcia MEDIAN vráti hodnotu v strede množiny údajov, zatiaľ čo funkcia MODE vráti najčastejšie sa vyskytujúcu hodnotu. | C9: Položka | D9: Množstvo | F9: Položka | G9: Množstvo
A10: Prepojenia na ďalšie informácie na webe | C10: Chlieb | D10: 50 | F10: Chlieb | G10: 50
A11: Po výbere tohto prepojenia získate všetky informácie o funkcii AVERAGE, článok na webe | C11: Šišky | D11: 100 | F11: Šišky | G11: 100
A12: Po výbere tohto prepojenia získate všetky informácie o funkcii MEDIAN, článok na webe | C12: Sušienky | D12: 40 | F12: Sušienky | G12: 40
A13: Po výbere tohto prepojenia získate všetky informácie o funkcii MODE, článok na webe | C13: Torty | D13: 50 | F13: Torty | G13: 50
A14: Po výbere tohto prepojenia získate informácie o bezplatnom online školení pre Excel, článok na webe | C14: Koláče | D14: 20 | F14: Koláče | G14: 20
C15: AVERAGE >

Sheet MIN a MAX
A1: Funkcie MIN a MAX
A2: Pomocou funkcie MIN získate minimálne číslo v rozsahu buniek. | C2: Ovocie | D2: Množstvo | F2: Mäso | G2: Množstvo
A3: Pomocou funkcie MAX získate maximálne číslo v rozsahu buniek. | C3: Jablká | D3: 50 | F3: Hovädzie | G3: 50
A4: Vyberte bunku D7 a potom pomocou Sprievodcu automatickým súčtom pridajte funkciu MIN. | C4: Pomaranče | D4: 20 | F4: Kuracie | G4: 30
A5: Teraz vyberte bunku G7 a zadajte funkciu MAX zadaním vzorca =MAX(G3:G6). | C5: Banány | D5: 60 | F5: Bravčové | G5: 10
A6: V bunke D15 môžete pomocou Sprievodcu automatickým súčtom alebo ručným zadaním zadať funkciu MIN alebo MAX. | C6: Citróny | D6: 40 | F6: Ryby | G6: 50
A7: Ďalšie informácie na webe | C7: MIN > | F7: MAX >
A8: Všetky informácie o funkcii MIN
A9: Všetky informácie o funkcii MAX | C9: Položka | D9: Množstvo | F9: Položka | G9: Množstvo
A10: Bezplatné online školenie pre Excel | C10: Chlieb | D10: 50 | F10: Chlieb | G10: 50
A11: DOBRE VEDIEŤ Funkciu MIN alebo MAX môžete použiť s viacerými rozsahmi alebo hodnotami, a tým zobraziť hodnotu väčšiu alebo menšiu ako tieto hodnoty. Môžete napríklad použiť vzorec =MIN(A1:A10;B1:B10) alebo =MAX(A1:A10;B1), kde bunka B1 obsahuje prahovú hodnotu, napríklad 10. V takomto prípade by vzorec nikdy nevrátil výsledok menší ako 10. | C11: Šišky | D11: 100 | F11: Šišky | G11: 100
C12: Sušienky | D12: 40 | F12: Sušienky | G12: 40
C13: Torty | D13: 50 | F13: Torty | G13: 50
C14: Koláče | D14: 20 | F14: Koláče | G14: 20
C15: MIN alebo MAX > | G15: =MIN(G10:G14,10) -> 10

Sheet Dátum a čas
A1: Funkcie dátumu
A2: Excel vám môže poskytnúť aktuálny dátum na základe miestnych nastavení počítača. Môžete tiež sčítať a odčítať dátumy.
A3: Pozrite si funkciu TODAY, ktorá poskytne dnešný dátum. Patrí medzi živé, nestále funkcie, takže keď zošit otvoríte zajtra, bude zobrazovať zajtrajší dátum. Zadajte vzorec =TODAY() do bunky D6.
A4: Odčítanie dátumov – zadajte do bunky D7 dátum svojich nasledujúcich narodenín vo formáte DD.MM.YY a pozrite sa, ako Excel s použitím vzorca =D7-D6 zobrazí v bunke D8 počet dní, ktoré do nich zostávajú.
A5: Sčítanie dátumov – povedzme, že chcete zistiť dátum splatnosti faktúry alebo dátum, kedy musíte vrátiť knihu do knižnice. Zistíte ho tak, že pripočítate dni k dátumu. Do bunky D10 zadajte ľubovoľný počet dní. Do bunky D11 sme zadali vzorec =D6+D10 na výpočet termínu od dnešného dňa. | C5: Funkcie dátumu
A6: DOBRE VEDIEŤ Excel uchováva dátumy a časy na základe počtu dní od 1. januára 1900. Časy sa uchovávajú ako zlomkové časti dňa na základe minút. Takže 01.01.2017 12:30 sa v skutočnosti uchováva ako 42736.5208. Ak sa čas a dátum zobrazujú ako takéto čísla, môžete stlačiť kombináciu klávesov Ctrl + 1 a potom na karte Číslo vybrať formát dátum alebo čas. | C6: Dnešný dátum: | F6: =IF(D6=TODAY(),"Výborne!","") -> 
A7: DÔLEŽITÉ INFORMÁCIE Ak nechcete, aby Excel zobrazil záporné číslo, pretože ste ešte nezadali svoje narodeniny, môžete použiť funkciu IF takto: =IF(D7="";"";D7-D6), čo znamená: AK sa D7 rovná nič, zobraz nič, v opačnom prípade zobraz D7 mínus D6. | C7: Vaše narodeniny:
A8: Funkcie času | C8: Počet dní do vašich narodenín: | D8: =D7-D6 -> 0
A9: Excel vám môže poskytnúť aktuálny čas na základe miestnych nastavení počítača. Môžete tiež sčítať a odčítať časy. Môžete napríklad potrebovať sledovať počet hodín, ktoré zamestnanec odpracuje každý týždeň, a vypočítať jeho výplatu a nadčasy.
A10: Do bunky D28 zadajte vzorec =NOW(), ktorý zobrazí aktuálny čas a bude sa aktualizovať vždy, keď Excel vykoná výpočet. Ak potrebujete zmeniť formát času, stlačte kombináciu klávesov Ctrl + 1 a potom na karte Číslo vyberte pod položkou Čas požadovaný formát. | C10: Počet dní doby odkladu:
A11: Sčítanie hodín medzi časmi – do bunky D36 sme zadali vzorec =((D35-D32)-(D34-D33))*24, ktorý vypočíta čas príchodu a odchodu určitej osoby a potom odčíta čas obedňajšej prestávky. *24 na konci vzorca skonvertuje zlomkovú časť dňa, ktorú používa Excel, na hodiny. Bunku je však potrebné naformátovať ako číslo. Urobíte to tak, že prejdete na položky Domov > Formátovať > Objekt (Ctrl + 1) > Číslo > Číslo > 2 desatinné miesta. | C11: Dátum splatnosti faktúry: | D11: =D6+D10 -> 00:00:00
A12: Keby tento vzorec mohol rozprávať, povedal by asi toto: Od hodnoty Čas príchodu odčítaj hodnotu Čas odchodu, potom od hodnoty Začiatok obeda odčítaj hodnotu Koniec obeda a nakoniec výsledok vynásob číslom 24, čím sa zlomkový čas Excelu skonvertuje na hodiny. Alebo inak povedané =((Čas odchodu – Čas príchodu) - (Začiatok obeda - Koniec obeda))*24.
A13: Predchádzajúci
A14: Nasledujúci
A15: Ďalšie informácie na webe
A16: Všetky informácie o funkcii TODAY
A17: Všetky informácie o funkcii NOW
A18: Všetky informácie o funkcii DATE
A19: Bezplatné online školenie pre Excel
C27: Funkcie času
C28: Aktuálny čas:
C31: Počet odpracovaných hodín za deň
C32: Čas príchodu: | D32: 08:00:00
C33: Koniec obeda: | D33: 12:00:00
C34: Začiatok obeda: | D34: 13:00:00
C35: Čas odchodu: | D35: 17:00:00
C36: Celkový počet hodín: | D36: =((D35-D32)-(D34-D33))*24 -> 8
C45: Statický dátum a čas
C46: Dátum: | D46: 2017-09-27
C47: Čas: | D47: 08:52:00

Sheet Spojenie textu a čísel
A1: Spojenie textu z rôznych buniek
A2: Pri práci v Exceli budete chcieť veľakrát spojiť text, ktorý sa nachádza v rôznych bunkách. Veľmi bežný je nasledujúci príklad, v ktorom máme mená a priezviská, a chceme ich skombinovať do formátu priezvisko, meno alebo do celého mena. Excel nám to našťastie umožňuje urobiť pomocou znaku &, ktorý zadáte stlačením kombinácie klávesov pravý Shift + 7. | C2: Meno | D2: Priezvisko | E2: Priezvisko, Meno | F2: Celé meno
A3: Do bunky E3 zadajte vzorec =D3&C3, ktorým spojíte priezvisko a meno. | C3: Mária | D3: Kováčová | E3: =D3&", "&C3 -> Kováčová, Mária | F3: =C3&" "&D3 -> Mária Kováčová
A4: Meno KováčováMária však nevyzerá úplne správne. Potrebujeme pridať čiarku a medzeru. Urobíme to tak, že pridáme nový reťazec s použitím úvodzoviek. Teraz zadáme vzorec =D3&", "&C3. Časť vzorca &", "& nám umožňuje pridať k textu v bunkách čiarku a medzeru. | C4: Adam | D4: Horváth
A5: Ak chceme vytvoriť celé meno, spojíme meno a priezvisko, no použijeme medzeru bez čiarky. Do bunky F3 zadajte vzorec =C3&" "&D3. | C5: Jozef | D5: Králik
A6: Ďalšie podrobnosti nájdete nižšie | C6: Miroslava | D6: Beňová
A7: Nasledujúci | C7: Samuel | D7: Krajčovič
A8: Spoločné použitie textu a čísel | C8: Milan | D8: Blahoš
A9: Keď sme už spojili text s textom, poďme teraz použiť znak & na spojenie textu a čísel. Pozrite sa na bunky C28:D29. Všimnite si, že dátum a čas sú v samostatných bunkách. Môžete ich spojiť pomocou symbolu & tak, ako je to v bunkách C32:C33, ale ako vidíte, nevyzerá to správne. Excel žiaľ nevie, ako chcete formátovať čísla, a preto ich rozpíše do ich základného formátu, ktorým je v tomto prípade poradové číslo dátumu. Excelu potrebujeme explicitne povedať, ako má naformátovať číselnú časť vzorca, aby sa vo výslednom textovom reťazci zobrazila požadovaným spôsobom. Urobíme to s použitím funkcie TEXT a kódu formátu. | C9: Roman | D9: Polakovič
A10: Do bunky C36 zadajte vzorec =C28&" "&TEXT(D28;"DD.MM.YYYY"). DD.MM.YYYY je kód slovenského formátu deň.mesiac.rok, napríklad 25.09.2017. | C10: Lucia | D10: Blahošová
A11: Do bunky C37 zadajte vzorec =C29&" "&TEXT(D29;"H:MM"). H:MM je kód slovenského formátu hodiny:minúty (24-hodinový formát), napríklad 13:30.
A12: VYSKÚŠAJTE TO Vzorce, a najmä tie veľké, sa niekedy ťažko čítajú, ich časti však môžete oddeliť medzerami takto: =C28 & " " & TEXT(D28;"DD/MM/YYYY")
A13: OPLATÍ SA PRESKÚMAŤ Ak neviete, ktorý kód formátu použiť, môžete stlačiť kombináciu klávesov Ctrl + 1 a potom na karte Číslo určiť formát pre ľubovoľnú bunku. Potom vyberte možnosť Vlastné. Zobrazený kód formátu môžete skopírovať späť do svojho vzorca.
A14: Ďalšie informácie na webe
A15: Všetky informácie o funkcii TEXT
A16: Kombinovanie textu a čísel
A17: Bezplatné online školenie pre Excel
C27: Použitie textu a čísel
C28: Dnešný dátum: | D28: =TODAY() -> 2021-10-19
C29: Aktuálny čas: | D29: =NOW() -> 44488.48123
C31: Spojenie textu a čísel
C32: =C28&" "&D28 -> Dnešný dátum: 44488
C33: =C29&" "&D29 -> Aktuálny čas: 44488.4812321759
C35: Formátovanie textu a čísel
C36: =C28 &" "& TEXT(D28,"DD.MM.YYYY") -> Dnešný dátum: 19.10.2021
C37: =C29&" "&TEXT(D29,"H:MM") -> Aktuálny čas: 11:32

Sheet Príkazy IF
A1: Príkazy IF
A2: Pomocou príkazov IF môžete vykonať logické porovnania medzi podmienkami. Príkaz IF vo všeobecnosti znamená, že ak má jedna podmienka hodnotu true, má sa vykonať určitá akcia, a ak má naopak hodnotu false, má sa vykonať iná akcia. Vzorce môžu vrátiť text, hodnoty alebo aj ďalšie výpočty.
A3: V bunke D9 zadajte vzorec =IF(C9="Jablko";TRUE;FALSE). Správna odpoveď je TRUE.
A4: Skopírujte bunku D9 do bunky D10. Odpoveď by tu mala byť FALSE, pretože pomaranč nie je jablko.
A5: Vyskúšajte iný príklad – pozrite sa na vzorec v bunke D12. Zadali sme do nej vzorec =IF(C12<100;"Menšie ako 100";"Väčšie ako alebo rovné 100"). Čo sa stane, ak zadáte do bunky C12 číslo väčšie ako 100?
A6: DÔLEŽITÉ INFORMÁCIE Slová TRUE a FALSE sa od iných slov v excelových vzorcoch líšia v tom, že nie je potrebné, aby boli v úvodzovkách, a Excel ich automaticky napíše veľkými písmenami. V úvodzovkách nemusia byť ani čísla. Obyčajný text, napríklad slovo Áno alebo Nie, musí byť v úvodzovkách takto: =IF(C9="Jablko";"Áno";"Nie")
A7: Ďalšie podrobnosti nájdete nižšie
A8: Nasledujúci | C8: Príkazy IF
A9: Príkaz IF s ďalšou funkciou | C9: Jablko
A10: Príkazy IF tiež môžu vynútiť vykonanie ďalších výpočtov v prípade, že je splnená určitá podmienka. V tomto príklade vyhodnotíme bunku s cieľom zistiť, či sa má účtovať daň z obratu, a vypočítať ju v prípade, že podmienka má hodnotu true. | C10: Pomaranč
A11: Do bunky F33 sme zadali vzorec =IF(E33="Áno";F31*DaňZObratu;0), pričom slovo DaňZObratu sme nastavili ako pomenovaný rozsah s hodnotou 0,0825. Náš vzorec znamená: Ak sa bunka E33 rovná hodnote Áno, vynásob bunku F31 hodnotou DaňZObratu, v opačnom prípade vráť hodnotu 0. Skúste v bunke E33 zmeniť hodnotu z Áno na Nie a pozrite sa, ako sa zmení výpočet.
A12: Ďalej sme pridali príkaz IF na výpočet prepravy, ak sa požaduje. V bunke F35 uvidíte vzorec =IF(E35="Áno";SUM(D28:D29)*1,25;0). To znamená: Ak má bunka E35 hodnotu Áno, použi súčet stĺpca Množstvo vo vyššie uvedenej tabuľke a vynásob ho hodnotou 1,25, v opačnom prípade vráť hodnotu 0. | C12: 50 | D12: =IF(C12<100,"Menšie ako 100","Väčšie ako alebo rovné 100") -> Menšie ako 100
A13: Teraz zmeňte hodnotu 1,25 vo vzorci v bunke F35 na slovo Preprava. Keď začnete písať, automatické opravy Excelu by toto slovo mali nájsť za vás. Keď ho nájdu, zadajte ho stlačením klávesu Tab. Ide o pomenovaný rozsah, ktorý sme zadali cez položky Vzorce > Definovať názov. Ak budete kedykoľvek potrebovať zmeniť prepravné náklady, stačí to urobiť na jednom mieste, a názov Preprava môžete použiť kdekoľvek v zošite.
A14: DOBRE VEDIEŤ Keď vytvárate vzorec, Excel automaticky umiestni farebné orámovanie okolo všetkých rozsahov, na ktoré sa odkazuje vo vzorci, a zodpovedajúce rozsahy vo vzorci budú mať rovnakú farbu. Ak si to chcete pozrieť, vyberte bunku F33 a stlačte kláves F2 na úpravu vzorca.
A15: TIP OD ODBORNÍKOV Pomocou pomenovaných rozsahov môžete na jednom mieste definovať podmienky alebo hodnoty a potom ich znova použiť na rôznych miestach v celom zošite. Ak si chcete pozrieť všetky pomenované rozsahy v tomto zošite, prejdite na položky Vzorce > Správca názvov. Ďalšie informácie získate kliknutím sem.
A16: Predchádzajúci
A17: Nasledujúci
A18: Ďalšie informácie na webe
A19: Všetky informácie o funkcii IF
A20: Všetky informácie o funkcii IFS
A21: Rozšírené príkazy IF
A22: Bezplatné online školenie pre Excel
C27: Položka | D27: Množstvo | E27: Náklady | F27: Spolu
C28: Aparát | D28: 2 | E28: 9.76 € | F28: ='Príkazy IF'!$E$28:$E$29*'Príkazy IF'!$D$28:$D$29 -> 19.52 €
C29: Vecička | D29: 3 | E29: 3.42 € | F29: ='Príkazy IF'!$E$28:$E$29*'Príkazy IF'!$D$28:$D$29 -> 10.26 €
D31: Medzisúčet | E31: =SUM('Príkazy IF'!$E$28:$E$29) -> 13.18 € | F31: =SUM('Príkazy IF'!F28:F29) -> 29.78 €
D33: Daň z obratu? | E33: Áno | F33: =IF(E33="Áno",F31*DaňZObratu,0) -> 2.46 €
D35: Preprava? | E35: Áno | F35: =IF(E35="Áno",SUM(D28:D29)*1.25,0) -> 6.25 €
D37: Spolu | F37: =SUM(F33,F31,F35) -> 38.48 €

Sheet VLOOKUP
A1: VLOOKUP
A2: VLOOKUP je jedna z najbežnejšie používaných funkcií v Exceli (a je aj jednou z našich obľúbených!). Funkcia VLOOKUP umožňuje vyhľadať hodnotu v stĺpci vľavo a následne vrátiť informácie v inom stĺpci vpravo v prípade, že nájde zhodu. Funkcia VLOOKUP znamená:
A3: =VLOOKUP(A1;B:C;2;FALSE)
A4: Čo chcete hľadať?
A5: Ak to nájdete, z koľkého stĺpca v poradí doprava sa má načítať hodnota?
A6: Kde to chcete hľadať?
A7: Chcete presnú, alebo približnú zhodu?
A8: Do bunky D22 zadajte vzorec =VLOOKUP(C22;C17:D20;2;FALSE). Správna odpoveď pre Jablká je 50. Funkcia VLOOKUP hľadala hodnotu Jablká, našla ju, potom prešla o jeden stĺpec doprava a vrátila množstvo.
A9: Teraz si to skúste sami v časti Mäso v bunke G22. Mali by ste vytvoriť vzorec =VLOOKUP(F22;F17:G20;2;FALSE).
A10: VYSKÚŠAJTE Skúste vybrať iné položky v rozbaľovacích zoznamoch. Bunky s výsledkami sa budú automaticky aktualizovať na nové hodnoty.
A11: Ďalšie podrobnosti nájdete nižšie
A12: Nasledujúci
A13: Funkcia VLOOKUP a chyba #NEDOSTUPNÝ
A14: Časom sa určite stretnete so situáciou, keď funkcia VLOOKUP nebude vedieť nájsť to, o čo ste ju požiadali, a vráti chybu (#NEDOSTUPNÝ). Niekedy je to preto, že hľadaná hodnota jednoducho neexistuje, alebo preto, že odkazovaná bunka ešte neobsahuje hodnotu.
A15: Ak viete, že hľadaná hodnota existuje, no chcete skryť chybu vtedy, keď je hľadaná bunka prázdna, môžete použiť príkaz IF. V tomto prípade doplníme náš existujúci vzorec funkcie VLOOKUP v bunke D43 takto: =IF(C43="";"";VLOOKUP(C43;C37:D41;2;FALSE)) Tento vzorec znamená: ak sa bunka C43 rovná nič (""), potom vráť nič, v opačnom prípade vráť výsledky funkcie VLOOKUP. Všimnite si druhú pravú zátvorku na konci vzorca. Táto zátvorka uzatvára príkaz IF.
A16: Ak si nie ste istí, že hľadaná hodnota existuje, no aj tak chcete potlačiť chybu #NEDOSTUPNÝ, môžete v bunke G43 použiť funkciu na spracovanie chýb s názvom IFERROR: =IFERROR(VLOOKUP(F43;F37:G41;2;FALSE);""). Funkcia IFERROR hovorí: ak funkcia VLOOKUP vráti platný výsledok, zobraz ho, v opačnom prípade zobraz nič (""). V tomto príklade sme zobrazili nič (""), môžete však použiť aj čísla (0,1, 2 atď.) alebo text, napríklad "Vzorec je nesprávny". | C16: Ovocie | D16: Množstvo | F16: Mäso | G16: Množstvo
A17: DÔLEŽITÉ INFORMÁCIE Funkcia IFERROR obsluhuje chyby zakrytím, čo znamená, že potlačí každú chybu, ktorú môže vzorec vrátiť. Môže to spôsobiť problémy vtedy, keď vám Excel dáva oznámenie o odôvodnenej chybe vo vzorci, ktorú je potrebné opraviť. Vo všeobecnosti je vhodné nepridávať obsluhu chýb do vzorcov dovtedy, kým nemáte úplnú istotu, že fungujú správne. | C17: Jablká | D17: 50 | F17: Hovädzie | G17: 50
A18: Predchádzajúci | C18: Pomaranče | D18: 20 | F18: Kuracie | G18: 30
A19: Nasledujúci | C19: Banány | D19: 60 | F19: Bravčové | G19: 10
A20: Ďalšie informácie na webe | C20: Citróny | D20: 40 | F20: Ryby | G20: 50
A21: Všetky informácie o funkcii VLOOKUP
A22: Všetky informácie o funkciách INDEX/MATCH | C22: Jablká | F22: Bravčové
A23: Všetky informácie o funkcii IFERROR
A24: Použitie kontingenčných tabuliek na analýzu údajov z hárkov
A25: Bezplatné online školenie pre Excel
C35: Keby mohla funkcia SUM v bunke D42 rozprávať, povedala by asi toto: Sčítaj hodnoty v bunkách D38, D39, D40 a D41.
C36: Položka | D36: Množstvo | F36: Položka | G36: Množstvo
C37: Chlieb | D37: 50 | F37: Chlieb | G37: 50
C38: Šišky | D38: 100 | F38: Šišky | G38: 100
C39: Sušienky | D39: 40 | F39: Sušienky | G39: 40
C40: Torty | D40: 50 | F40: Torty | G40: 50
C41: Koláče | D41: 20 | F41: Koláče | G41: 20
D43: =VLOOKUP(C43,C37:D41,2,FALSE) ->  | F43: Pečivo | G43: =IFERROR(VLOOKUP(F43,F37:G41,2,FALSE),"") -> 

Sheet Podmienené funkcie
A1: Podmienené funkcie – SUMIF
A2: Pomocou podmienených funkcií môžete vypočítať súčet, priemer a počet alebo zistiť minimálnu či maximálnu hodnotu v rámci rozsahu na základe určitej podmienky alebo kritéria, ktoré zadáte. Napríklad: koľko zo všetkého ovocia v zozname sú jablká? Koľko pomarančov je odrody Florida? | C2: Ovocie | D2: Množstvo | F2: Ovocie | G2: Odroda | H2: Množstvo | Z2: Ovocie | AB2: Jablká | AD2: Pomaranče | AF2: Banány | AH2: Citróny
A3: Pomocou funkcie SUMIF môžete vypočítať súčet jedného rozsahu na základe konkrétnych kritérií, ktoré vyhľadáte v inom rozsahu. Môžete napríklad zistiť, koľko máte jabĺk. Vyberte bunku D17 a zadajte vzorec =SUMIF(C3:C14;C17;D3:D14). Funkcia SUMIF má takúto štruktúru: | C3: Jablká | D3: 50 | F3: Jablká | G3: Fuji | H3: 50 | Z3: Jablká | AB3: Fuji | AD3: Florida | AF3: Cavendish | AH3: Rough
A4: =SUMIF(C3:C14,C17,D3:D14) -> 150 | C4: Pomaranče | D4: 20 | F4: Pomaranče | G4: Florida | H4: 20 | Z4: Pomaranče | AB4: Honeycrisp | AD4: Navel | AF4: Lady Finger | AH4: Eureka
A5: Na ktorý rozsah sa chcete pozrieť? | C5: Banány | D5: 60 | F5: Banány | G5: Cavendish | H5: 60 | Z5: Banány
A6: Akú hodnotu (text alebo číslo) chcete hľadať? | C6: Citróny | D6: 40 | F6: Citróny | G6: Rough | H6: 40 | Z6: Citróny
A7: Súčet z ktorého rozsahu sa má vypočítať pre každú nájdenú zhodu? | C7: Jablká | D7: 50 | F7: Jablká | G7: Honeycrisp | H7: 50
A8: Funkcia SUMIFS je rovnaká ako funkcia SUMIF, no umožňuje použiť viaceré kritériá. V tomto príklade preto môžete namiesto vyhľadávania len podľa ovocia vyhľadávať podľa ovocia a odrody. Vyberte bunku H17 a zadajte vzorec =SUMIFS(H3:H14;F3:F14;F17;G3:G14;G17). Funkcia SUMIFS má takúto štruktúru: | C8: Pomaranče | D8: 20 | F8: Pomaranče | G8: Navel | H8: 20
A9: =SUMIFS(H3:H14;F3:F14;F17;G3:G14;G17) | C9: Banány | D9: 60 | F9: Banány | G9: Lady Finger | H9: 60
A10: Ktorý rozsah chcete sčítať? | C10: Citróny | D10: 40 | F10: Citróny | G10: Eureka | H10: 40
A11: Toto je prvý rozsah, v ktorom sa majú hľadať zhody | C11: Jablká | D11: 50 | F11: Jablká | G11: Honeycrisp | H11: 50
A12: Toto je kritérium pre prvú zhodu | C12: Pomaranče | D12: 20 | F12: Pomaranče | G12: Navel | H12: 20
A13: Toto je druhý rozsah, v ktorom sa majú hľadať zhody | C13: Banány | D13: 60 | F13: Banány | G13: Cavendish | H13: 60
A14: Toto je kritérium pre druhú zhodu | C14: Citróny | D14: 40 | F14: Citróny | G14: Eureka | H14: 40
A15: TIP OD ODBORNÍKOV Každá bunka ovocia a odrody obsahuje rozbaľovací zoznam, v ktorom môžete vybrať rôzne ovocie. Vyskúšajte si to a sledujte, ako sa vzorce automaticky aktualizujú.
A16: Ďalšie podrobnosti nájdete nižšie | C16: Ovocie | D16: SUMIF | F16: Ovocie | G16: Odroda | H16: SUMIFS
A17: Ďalší krok | C17: Jablká | F17: Pomaranče | G17: Florida
A18: Podmienené funkcie – COUNTIF
A19: Pomocou funkcií COUNTIF a COUNTIFS môžete zistiť počet hodnôt v rozsahu na základe kritérií, ktoré zadáte. Od iných funkcií IF a IFS sú mierne odlišné v tom, že obsahujú len rozsah kritérií a kritériá. Jeden rozsah nevyhodnotia a počet hodnôt zistia hľadaním v druhom rozsahu.
A20: Vyberte bunku D64 a zadajte vzorec =COUNTIF(C50:C61;C64). Funkcia COUNTIF má takúto štruktúru:
A21: =COUNTIF(C50:C61;C64)
A22: Na ktorý rozsah sa chcete pozrieť?
A23: Akú hodnotu (text alebo číslo) chcete hľadať?
A24: Funkcia COUNTIFS je rovnaká ako funkcia SUMIF, no umožňuje použiť viaceré kritériá. V tomto príklade preto môžete namiesto vyhľadávania len podľa ovocia vyhľadávať podľa ovocia a odrody. Vyberte bunku H64 a zadajte vzorec =COUNTIFS(F50:F61;F64;G50:G61;G64). Funkcia COUNTIFS má takúto štruktúru:
A25: =COUNTIFS(F50:F61;F64;G50:G61;G64)
A26: Je to prvý rozsah, v ktorom sa má zistiť počet hodnôt
A27: Toto je kritérium pre prvú zhodu
A28: Je to druhý rozsah, v ktorom sa má zistiť počet hodnôt
A29: Toto je kritérium pre druhú zhodu
A30: Ďalšie podrobnosti nájdete nižšie
A31: Nasledujúci
A32: Ďalšie podmienené funkcie
A33: Už ste videli funkcie SUMIF, SUMIFS, COUNTIF a COUNTIFS. Teraz môžete skúsiť pracovať sami s inými funkciami, ako sú napríklad AVERAGEIF/S, MAXIFS a MINIFS. Všetky majú rovnakú štruktúru, takže po napísaní vzorca stačí len jednoducho nahradiť názov funkcie názvom požadovanej funkcie. Napísali sme všetky funkcie, ktoré budete potrebovať do bunky E106, preto ich môžete skopírovať a prilepiť. Alebo ich môžete skúsiť zadať ručne, aby ste si to precvičili. SUMIF =SUMIF(C92:C103;C106;E92:E103) SUMIFS =SUMIFS(E92:E103;C92:C103;C106;D92:D103;D106) AVERAGEIF =AVERAGEIF(C92:C103;C106;E92:E103) AVERAGEIFS =AVERAGEIFS(E92:E103;C92:C103;C106;D92:D103;D106) COUNTIF =COUNTIF(C92:C103;C106) COUNTIFS =COUNTIFS(C92:C103;C106;D92:D103;D106) MAXIFS =MAXIFS(E92:E103;C92:C103;C106;D92:D103;D106) MINIFS =MINIFS(E92:E103;C92:C103;C106;D92:D103;D106)
A34: Ďalšie podrobnosti nájdete nižšie
A35: Nasledujúci
A36: Funkcia SUMIF s argumentom hodnoty
A37: Tu je príklad funkcie SUMIF, ktorá s použitím kritéria väčšie ako (>) vyhľadá všetky hodnoty väčšie ako zadaná hodnota:
A38: =SUMIF(D118:D122,">=50") -> 200
A39: Sčítajte niekoľko hodnôt na základe tohto kritéria:
A40: ...prehľadaj tieto bunky...
A41: ...a ak nájdeš hodnoty väčšie ako 50, spočítaj ich.
A42: POZNÁMKA: Ak zistíte, že potrebujete vytvoriť veľké množstvo podmienených funkcií, možno by pre vás bola lepším riešením kontingenčná tabuľka. Ďalšie informácie nájdete v tomto článku o kontingenčných tabuľkách.
A43: Ďalšie informácie na webe
A44: Všetky informácie o funkcii SUMIF
A45: Všetky informácie o funkcii SUMIFS
A46: Všetky informácie o funkcii COUNTIF
A47: Všetky informácie o funkcii COUNTIFS
A48: Všetky informácie o funkcii AVERAGEIF
A49: Všetky informácie o funkcii AVERAGEIFS | C49: Ovocie | D49: Množstvo | F49: Ovocie | G49: Odroda | H49: Množstvo
A50: Všetky informácie o funkcii MINIFS | C50: Jablká | D50: 50 | F50: Jablká | G50: Fuji | H50: 50
A51: Všetky informácie o funkcii MAXIFS | C51: Pomaranče | D51: 20 | F51: Pomaranče | G51: Florida | H51: 20
A52: Vytvorenie rozbaľovacieho zoznamu | C52: Banány | D52: 60 | F52: Banány | G52: Cavendish | H52: 60
A53: Bezplatné online školenie pre Excel | C53: Citróny | D53: 40 | F53: Citróny | G53: Rough | H53: 40
A54: Späť na začiatok | C54: Jablká | D54: 50 | F54: Jablká | G54: Honeycrisp | H54: 50
A55: Nasledujúci | C55: Pomaranče | D55: 20 | F55: Pomaranče | G55: Navel | H55: 20
C56: Banány | D56: 60 | F56: Banány | G56: Lady Finger | H56: 60
C57: Citróny | D57: 40 | F57: Citróny | G57: Eureka | H57: 40
C58: Jablká | D58: 50 | F58: Jablká | G58: Honeycrisp | H58: 50
C59: Pomaranče | D59: 20 | F59: Pomaranče | G59: Navel | H59: 20
C60: Banány | D60: 60 | F60: Banány | G60: Cavendish | H60: 60
C61: Citróny | D61: 40 | F61: Citróny | G61: Eureka | H61: 40
C63: Ovocie | D63: COUNTIF | F63: Ovocie | G63: Odroda | H63: COUNTIFS
C64: Jablká | D64: =COUNTIF(C50:C61,C64) -> 3 | F64: Pomaranče | G64: Florida | H64: =COUNTIFS(F50:F61,F64,G50:G61,G64) -> 1
C91: Ovocie | D91: Odroda | E91: Množstvo
C92: Jablká | D92: Fuji | E92: 50
C93: Pomaranče | D93: Florida | E93: 20
C94: Banány | D94: Cavendish | E94: 60
C95: Citróny | D95: Rough | E95: 40
C96: Jablká | D96: Honeycrisp | E96: 50
C97: Pomaranče | D97: Navel | E97: 20
C98: Banány | D98: Lady Finger | E98: 60
C99: Citróny | D99: Eureka | E99: 40
C100: Jablká | D100: Honeycrisp | E100: 50
C101: Pomaranče | D101: Navel | E101: 20
C102: Banány | D102: Cavendish | E102: 60
C103: Citróny | D103: Eureka | E103: 40
C105: Ovocie | D105: Odroda | E105: Vyskúšajte to
C106: Citróny | D106: Eureka | E106: =AVERAGEIFS(E92:E103,C92:C103,C106,D92:D103,D106) -> 40
C117: Položka | D117: Množstvo
C118: Chlieb | D118: 50
C119: Šišky | D119: 100
C120: Sušienky | D120: 40
C121: Torty | D121: 50
C122: Koláče | D122: 20
D123: =SUMIF(D118:D122,">=50") -> 200

Sheet Sprievodca funkciami
A1: Využite pomoc od Sprievodcu funkciami
A2: Ak poznáte názov funkcie, ktorú chcete použiť, no nie ste si istí, ako ju vytvoriť, môže vám pomôcť Sprievodca funkciami.
A3: Vyberte bunku D10, prejdite na položky Vzorce > Vložiť funkciu, do poľa Hľadať funkciu zadajte funkciu VLOOKUP a stlačte tlačidlo Prejsť. Keď je zvýraznená funkcia VLOOKUP, kliknite na tlačidlo OK v dolnej časti okna. Po výbere funkcie v zozname Excel zobrazí jej syntax.
A4: Zadajte argumenty funkcie do príslušných textových polí. Pri zadávaní jednotlivých argumentov ich Excel vyhodnotí a zobrazí ich výsledok, pričom konečný výsledok sa zobrazí v dolnej časti okna. Pri zadávaní jednotlivých častí sa v dolnej časti formulára zobrazujú kritériá pre jednotlivé argumenty. Po dokončení stlačte tlačidlo OK a Excel zadá vzorec. | C4: Ovocie | D4: Množstvo
A5: VYSKÚŠAJTE TO Mali by ste vytvoriť vzorec =VLOOKUP(C10;C5:D8;2;FALSE) | C5: Jablká | D5: 50
A6: DOBRE VEDIEŤ Odkazy na bunky a rozsahy môžete zadať alebo ich vybrať myšou. | C6: Pomaranče | D6: 20
A7: DOBRE VEDIEŤ Pri zadávaní častí jednotlivých argumentov sa v dolnej časti formulára nad výsledkom vzorca zobrazuje popis daného argumentu. | C7: Banány | D7: 60
A8: Predchádzajúci | C8: Citróny | D8: 40
A9: Nasledujúci
A10: Ďalšie informácie na webe | C10: Jablká | D10: =VLOOKUP(C10,C5:D8,2,FALSE) -> 50
A11: Prehľad vzorcov v Exceli
A12: Zoznam funkcií Excelu (podľa kategórie)
A13: Zoznam funkcií Excelu (podľa abecedy)
A14: Bezplatné online školenie pre Excel

Sheet Chyby vo vzorcoch
A1: Oprava chýb vo vzorcoch
A2: Časom sa stretnete so vzorcom, ktorý bude obsahovať chybu a Excel pri ňom zobrazí hlásenie #ChybaNázvu. Chyby môžu byť užitočné, pretože poukazujú na to, keď niečo nefunguje správne, no zároveň môže byť náročné ich opraviť. Našťastie je k dispozícii niekoľko možností, ktoré vám pomôžu zistiť zdroj chyby a opraviť ho.
A3: Kontrola chýb – prejdite na položky Vzorce > Kontrola chýb. Načíta sa dialógové okno, v ktorom je uvedená všeobecná príčina konkrétnej chyby. Chyba #NEDOSTUPNÝ v bunke D9 je spôsobená tým, že neexistuje hodnota zhodujúca sa s hodnotou Jablko. Tento problém môžete vyriešiť tak, že použijete existujúcu hodnotu, potlačíte chybu pomocou funkcie IFERROR, alebo ju budete ignorovať s vedomím, že zmizne vtedy, keď použijete existujúcu hodnotu. | C3: Ovocie | D3: Množstvo
A4: Keď kliknete na položku Pomocník pre túto chybu, zobrazí sa konkrétna téma Pomocníka pre toto chybové hlásenie. Keď kliknete na položku Zobraziť kroky výpočtu, načíta sa dialógové okno Vyhodnotenie vzorca. | C4: Jablká | D4: 50
A5: Pri každom kliknutí na položku Vyhodnotiť bude Excel po krokoch prechádzať jednotlivými časťami vzorca. Nemusí vám oznámiť príčinu chyby, no ukáže vám, kde sa nachádza. Podľa toho potom po prečítaní témy Pomocníka budete vedieť odvodiť, prečo je vo vzorci chyba. | C5: Pomaranče | D5: 20
A6: VYSKÚŠAJTE Aká je tu chyba? Tip: Pokúšame sa sčítať (SUM) všetky položky. | C6: Banány | D6: 60
A7: DOBRE VEDIEŤ Po kliknutí na položku Možnosti môžete nastaviť pravidlá pre zobrazovanie alebo ignorovanie chýb v Exceli. | C7: Citróny | D7: 40
A8: Predchádzajúci
A9: Nasledujúci | C9: Jablko | D9: =VLOOKUP(C9,C3:D7,2,FALSE) -> 
A10: Ďalšie informácie na webe
A11: Zisťovanie chýb vo vzorcoch
A12: Zabránenie vzniku nefunkčných vzorcov
A13: Vyhodnotenie vnoreného vzorca po krokoch
A14: Bezplatné online školenie pre Excel
C30: Ovocie | D30: Množstvo
C31: Jablká | D31: 50
C32: Pomaranče | D32: 20
C33: Banány | D33: 60
C34: Citróny | D34: 40
C36: Spolu | D36: =sume(D31:D34) -> 

Sheet Ďalšie informácie
A1: Máte ďalšie otázky o Exceli?
A2: Stlačte klávesy ALT + Q a napíšte, čo potrebujete zistiť.
A3: Pokračujte ďalej. O Exceli sa môžete naučiť ešte omnoho viac:
A4: Komunita: Položte otázky a spojte sa s ďalšími fanúšikmi Excelu.
A5: Čo je ešte nové? Predplatitelia služieb Office 365 neustále získavajú aktualizácie a nové funkcie.
